[Event "*** Titled Tuesday Blitz"]
[Site "Chess.com"]
[Date "2021.02.02"]
[Round "6"]
[White "Matols"]
[Black "InitiatingASC"]
[Result "1-0"]
[WhiteElo "2279"]
[BlackElo "2403"]
[TimeControl "180+1"]
[EndTime "11:08:48 PST"]
[Termination "Matols won by resignation"]

1. d4 {[%clk 0:03:00.9]} 1... Nf6 {[%clk 0:02:58]} 2. c4 {[%clk 0:03:00.7]} 2...
e6 {[%clk 0:02:58.2]} 3. g3 {[%clk 0:03:00.6]} 3... c5 {[%clk 0:02:57.8]} 4. d5
{[%clk 0:03:00.3]} 4... exd5 {[%clk 0:02:57.5]} 5. cxd5 {[%clk 0:03:01.2]} 5...
d6 {[%clk 0:02:58]} 6. Nc3 {[%clk 0:03:01]} 6... a6 {[%clk 0:02:57.7]} 7. a4
{[%clk 0:03:00.5]} 7... g6 {[%clk 0:02:58.3]} 8. Bg2 {[%clk 0:03:00.4]} 8... Bg7
{[%clk 0:02:58.8]} 9. Nf3 {[%clk 0:03:00.6]} 9... O-O {[%clk 0:02:59.2]} 10. O-O
{[%clk 0:03:00.9]} 10... Re8 {[%clk 0:02:56.9]} 11. Nd2 {[%clk 0:03:00.9]} 11...
Nbd7 {[%clk 0:02:50.9]} 12. h3 {[%clk 0:03:00.8]} 12... Qa5 {[%clk 0:02:46.1]}
13. Nc4 {[%clk 0:02:58.2]} 13... Qc7 {[%clk 0:02:44.2]} 14. Bf4 {[%clk
0:02:53.4]} 14... Bf8 {[%clk 0:02:38.8]} 15. Qc2 {[%clk 0:02:37.9]} 15... Ne5
{[%clk 0:02:32]} 16. Nxe5 {[%clk 0:02:20.2]} 16... dxe5 {[%clk 0:02:32.9]} 17.
Bg5 {[%clk 0:02:20.2]} 17... Nd7 {[%clk 0:02:22.1]} 18. e4 {[%clk 0:02:18.4]}
18... f6 {[%clk 0:02:15.5]} 19. Be3 {[%clk 0:02:17.1]} 19... Bd6 {[%clk
0:02:15.6]} 20. a5 {[%clk 0:02:07.7]} 20... b5 {[%clk 0:02:09]} 21. axb6 {[%clk
0:02:06.8]} 21... Qxb6 {[%clk 0:02:09.4]} 22. Na4 {[%clk 0:02:05.7]} 22... Qb4
{[%clk 0:02:04.8]} 23. Rfc1 {[%clk 0:02:03.9]} 23... Rb8 {[%clk 0:01:58.3]} 24.
Nxc5 {[%clk 0:01:40.7]} 24... Qxb2 {[%clk 0:01:50.2]} 25. Qxb2 {[%clk
0:01:30.4]} 25... Rxb2 {[%clk 0:01:49.9]} 26. Nxd7 {[%clk 0:01:28.7]} 26... Bxd7
{[%clk 0:01:50.8]} 27. Rxa6 {[%clk 0:01:28.7]} 27... Bb4 {[%clk 0:01:41.4]} 28.
Rxf6 {[%clk 0:01:22.2]} 28... Rc8 {[%clk 0:01:35.9]} 29. Rxc8+ {[%clk
0:01:14.5]} 29... Bxc8 {[%clk 0:01:35.6]} 30. Rb6 {[%clk 0:01:13.7]} 30... Kf7
{[%clk 0:01:25.7]} 31. Kh2 {[%clk 0:01:04.1]} 31... Bc3 {[%clk 0:01:18.7]} 32.
Rxb2 {[%clk 0:01:01.3]} 32... Bxb2 {[%clk 0:01:18.5]} 33. f4 {[%clk 0:01:01.3]}
33... Ke7 {[%clk 0:01:13.2]} 34. g4 {[%clk 0:01:00.9]} 34... Bb7 {[%clk
0:01:08.5]} 35. Kg3 {[%clk 0:01:00.5]} 35... Kd6 {[%clk 0:01:06.3]} 36. fxe5+
{[%clk 0:00:59.8]} 36... Kxe5 {[%clk 0:01:06.3]} 37. Bf4+ {[%clk 0:00:59]} 37...
Kd4 {[%clk 0:01:06.6]} 38. Kh4 {[%clk 0:00:52.6]} 38... Ba3 {[%clk 0:00:59.9]}
39. Kg5 {[%clk 0:00:49.2]} 39... Bc8 {[%clk 0:00:51]} 40. Kf6 {[%clk 0:00:46.7]}
40... h5 {[%clk 0:00:46.2]} 41. gxh5 {[%clk 0:00:45.1]} 41... gxh5 {[%clk
0:00:46.5]} 42. e5 {[%clk 0:00:45.1]} 42... Bb7 {[%clk 0:00:36.2]} 43. e6 {[%clk
0:00:38.7]} 43... h4 {[%clk 0:00:19]} 44. Be5+ {[%clk 0:00:31.3]} 44... Ke3
{[%clk 0:00:18.3]} 45. e7 {[%clk 0:00:29.4]} 45... Bxe7+ {[%clk 0:00:16.3]} 46.
Kxe7 {[%clk 0:00:29.2]} 46... Kf2 {[%clk 0:00:17.2]} 47. Be4 {[%clk 0:00:28.8]}
47... Ke3 {[%clk 0:00:17.3]} 48. Bh1 {[%clk 0:00:28.6]} 48... Kf2 {[%clk
0:00:17.6]} 49. d6 {[%clk 0:00:27.6]} 49... Bxh1 {[%clk 0:00:16.5]} 50. d7
{[%clk 0:00:27.8]} 50... Bg2 {[%clk 0:00:17.4]} 51. d8=Q {[%clk 0:00:27.9]} 1-0

[Event "*** Titled Tuesday Blitz"]
[Site "Chess.com"]
[Date "2021.02.02"]
[Round "6"]
[White "Treasurechess777"]
[Black "Vandros57"]
[Result "1/2-1/2"]
[WhiteElo "2399"]
[BlackElo "2238"]
[TimeControl "180+1"]
[EndTime "11:08:49 PST"]
[Termination "Game drawn by repetition"]

1. Nf3 {[%clk 0:03:00.9]} 1... d5 {[%clk 0:02:58.7]} 2. b3 {[%clk 0:03:01.2]}
2... Nf6 {[%clk 0:02:57.2]} 3. Bb2 {[%clk 0:03:01.5]} 3... e6 {[%clk 0:02:56.1]}
4. d4 {[%clk 0:03:01.6]} 4... c5 {[%clk 0:02:55.2]} 5. e3 {[%clk 0:03:02.1]}
5... Nc6 {[%clk 0:02:54]} 6. a3 {[%clk 0:03:02]} 6... Be7 {[%clk 0:02:52.5]} 7.
Bd3 {[%clk 0:03:02.1]} 7... O-O {[%clk 0:02:51.8]} 8. Nbd2 {[%clk 0:03:01.3]}
8... b6 {[%clk 0:02:40.8]} 9. O-O {[%clk 0:02:55.6]} 9... Bb7 {[%clk 0:02:40.3]}
10. c4 {[%clk 0:02:55.9]} 10... dxc4 {[%clk 0:02:38.9]} 11. bxc4 {[%clk
0:02:55.9]} 11... cxd4 {[%clk 0:02:38.4]} 12. exd4 {[%clk 0:02:56.3]} 12... Rc8
{[%clk 0:02:38]} 13. Rc1 {[%clk 0:02:56]} 13... Re8 {[%clk 0:02:36.5]} 14. Qe2
{[%clk 0:02:56.2]} 14... Bf8 {[%clk 0:02:30.1]} 15. Bb1 {[%clk 0:02:55.8]} 15...
Ne7 {[%clk 0:02:28.7]} 16. Ne5 {[%clk 0:02:55.2]} 16... Ng6 {[%clk 0:02:25.7]}
17. f4 {[%clk 0:02:55]} 17... Nd7 {[%clk 0:02:04.2]} 18. Ne4 {[%clk 0:02:11.8]}
18... Bxe4 {[%clk 0:01:55]} 19. Qxe4 {[%clk 0:02:10.4]} 19... Ndxe5 {[%clk
0:01:54.6]} 20. fxe5 {[%clk 0:02:10.5]} 20... Qh4 {[%clk 0:01:46.4]} 21. Qb7
{[%clk 0:01:58]} 21... Qe7 {[%clk 0:01:44.8]} 22. Qe4 {[%clk 0:01:56.1]} 22...
Qh4 {[%clk 0:01:43.5]} 23. Qb7 {[%clk 0:01:36.9]} 23... Qe7 {[%clk 0:01:42.1]}
24. Qf3 {[%clk 0:01:36.3]} 24... Red8 {[%clk 0:01:35.9]} 25. g3 {[%clk
0:01:31.5]} 25... Rd7 {[%clk 0:01:27.7]} 26. Rf2 {[%clk 0:01:24.6]} 26... Qd8
{[%clk 0:01:26.9]} 27. Bd3 {[%clk 0:01:22.1]} 27... Rxd4 {[%clk 0:01:09.6]} 28.
Qxf7+ {[%clk 0:01:17.7]} 28... Kh8 {[%clk 0:01:08.6]} 29. Bxd4 {[%clk
0:01:17.8]} 29... Qxd4 {[%clk 0:01:07.1]} 30. Bxg6 {[%clk 0:01:16.3]} 30... hxg6
{[%clk 0:01:05.2]} 31. Qxg6 {[%clk 0:01:16.4]} 31... Bc5 {[%clk 0:01:01.3]} 32.
Qh5+ {[%clk 0:00:58.8]} 32... Kg8 {[%clk 0:01:00.7]} 33. Qf7+ {[%clk 0:00:58.8]}
33... Kh8 {[%clk 0:00:59.7]} 34. Rf1 {[%clk 0:00:58.9]} 34... Rf8 {[%clk
0:00:50.2]} 35. Qh5+ {[%clk 0:00:57.2]} 35... Kg8 {[%clk 0:00:49.6]} 36. Qe2
{[%clk 0:00:54.7]} 36... Rxf2 {[%clk 0:00:47.9]} 37. Rxf2 {[%clk 0:00:55]} 37...
Qa1+ {[%clk 0:00:31]} 38. Kg2 {[%clk 0:00:55.1]} 38... Bxf2 {[%clk 0:00:30.7]}
39. Kxf2 {[%clk 0:00:53.8]} 39... Qxa3 {[%clk 0:00:29.6]} 40. Kg2 {[%clk
0:00:43.2]} 40... Qc5 {[%clk 0:00:28.8]} 41. Qh5 {[%clk 0:00:32.8]} 41... Qe7
{[%clk 0:00:26.1]} 42. g4 {[%clk 0:00:28]} 42... Qd7 {[%clk 0:00:24.7]} 43. g5
{[%clk 0:00:22.6]} 43... Qd2+ {[%clk 0:00:20.9]} 44. Kf1 {[%clk 0:00:17.2]}
44... Qd3+ {[%clk 0:00:19.5]} 45. Kg2 {[%clk 0:00:16.5]} 45... Qd2+ {[%clk
0:00:18.9]} 46. Kf1 {[%clk 0:00:16.5]} 46... Qd3+ {[%clk 0:00:18.7]} 47. Kg2
{[%clk 0:00:16.8]} 47... Qd2+ {[%clk 0:00:18.8]} 1/2-1/2

[Event "*** Titled Tuesday Blitz"]
[Site "Chess.com"]
[Date "2021.02.02"]
[Round "6"]
[White "StockholmMissile"]
[Black "krasavetc"]
[Result "0-1"]
[WhiteElo "2500"]
[BlackElo "2360"]
[TimeControl "180+1"]
[EndTime "11:08:50 PST"]
[Termination "krasavetc won on time"]

1. c4 {[%clk 0:03:00.8]} 1... Nf6 {[%clk 0:02:59.1]} 2. Nf3 {[%clk 0:02:58.9]}
2... e6 {[%clk 0:03:00]} 3. e3 {[%clk 0:02:58.2]} 3... d5 {[%clk 0:03:00.6]} 4.
Nc3 {[%clk 0:02:58.2]} 4... c6 {[%clk 0:03:00.7]} 5. b3 {[%clk 0:02:56.3]} 5...
Be7 {[%clk 0:02:57.9]} 6. Bb2 {[%clk 0:02:56.2]} 6... O-O {[%clk 0:02:57.3]} 7.
Rg1 {[%clk 0:02:52.3]} 7... Ne4 {[%clk 0:02:50.6]} 8. Qc2 {[%clk 0:02:48.9]}
8... f5 {[%clk 0:02:48.5]} 9. d3 {[%clk 0:02:46.9]} 9... Nxc3 {[%clk 0:02:30.9]}
10. Bxc3 {[%clk 0:02:47.8]} 10... Bf6 {[%clk 0:02:31.2]} 11. O-O-O {[%clk
0:02:14.6]} 11... a5 {[%clk 0:02:22.7]} 12. g4 {[%clk 0:02:03.9]} 12... fxg4
{[%clk 0:02:20]} 13. Rxg4 {[%clk 0:02:01]} 13... a4 {[%clk 0:02:13]} 14. Ne5
{[%clk 0:01:48.1]} 14... axb3 {[%clk 0:01:50.8]} 15. axb3 {[%clk 0:01:46.7]}
15... b5 {[%clk 0:01:43.1]} 16. f4 {[%clk 0:01:42.4]} 16... Qb6 {[%clk
0:01:35.6]} 17. Bd4 {[%clk 0:01:36.4]} 17... c5 {[%clk 0:01:31.5]} 18. Bb2
{[%clk 0:01:36.1]} 18... Na6 {[%clk 0:01:26.9]} 19. Qg2 {[%clk 0:01:23.7]} 19...
Ra7 {[%clk 0:01:19.4]} 20. cxd5 {[%clk 0:01:16.8]} 20... exd5 {[%clk 0:01:12.2]}
21. Qxd5+ {[%clk 0:01:15.3]} 21... Be6 {[%clk 0:01:12.2]} 22. Qg2 {[%clk
0:01:05.1]} 22... Bxg4 {[%clk 0:01:08.5]} 23. Qxg4 {[%clk 0:01:04.8]} 23... Nb4
{[%clk 0:01:02.9]} 24. Bh3 {[%clk 0:00:58.8]} 24... c4 {[%clk 0:00:54.9]} 25.
Qe6+ {[%clk 0:00:55.6]} 25... Qxe6 {[%clk 0:00:51.1]} 26. Bxe6+ {[%clk
0:00:56.5]} 26... Kh8 {[%clk 0:00:51.6]} 27. dxc4 {[%clk 0:00:56.4]} 27... bxc4
{[%clk 0:00:49.2]} 28. Bxc4 {[%clk 0:00:55.2]} 28... g6 {[%clk 0:00:42.9]} 29.
Rd6 {[%clk 0:00:46.9]} 29... Bg7 {[%clk 0:00:41.1]} 30. Rb6 {[%clk 0:00:40.8]}
30... Na2+ {[%clk 0:00:37.5]} 31. Kb1 {[%clk 0:00:39.8]} 31... Rfa8 {[%clk
0:00:26.3]} 32. Nf7+ {[%clk 0:00:34.5]} 32... Rxf7 {[%clk 0:00:25.5]} 33. Bxf7
{[%clk 0:00:34.5]} 33... Nc3+ {[%clk 0:00:26.4]} 34. Bxc3 {[%clk 0:00:28.9]}
34... Bxc3 {[%clk 0:00:27.3]} 35. Kc2 {[%clk 0:00:28.1]} 35... Be1 {[%clk
0:00:22.9]} 36. b4 {[%clk 0:00:25.2]} 36... Bf2 {[%clk 0:00:21.4]} 37. Kd2
{[%clk 0:00:10.3]} 37... Ra7 {[%clk 0:00:17.9]} 0-1

[Event "*** Titled Tuesday Blitz"]
[Site "Chess.com"]
[Date "2021.02.02"]
[Round "6"]
[White "Make_it_shine060"]
[Black "Lady_Nika"]
[Result "0-1"]
[WhiteElo "2171"]
[BlackElo "2394"]
[TimeControl "180+1"]
[EndTime "11:08:52 PST"]
[Termination "Lady_Nika won by resignation"]

1. d4 {[%clk 0:03:00.9]} 1... d5 {[%clk 0:02:57.6]} 2. c4 {[%clk 0:03:01.1]}
2... e6 {[%clk 0:02:57.4]} 3. Nf3 {[%clk 0:02:59.5]} 3... f5 {[%clk 0:02:56.5]}
4. Nc3 {[%clk 0:02:48]} 4... Nf6 {[%clk 0:02:56.2]} 5. Bg5 {[%clk 0:02:37.9]}
5... c6 {[%clk 0:02:54.8]} 6. g3 {[%clk 0:02:29]} 6... Be7 {[%clk 0:02:53.8]} 7.
Bg2 {[%clk 0:02:25.1]} 7... O-O {[%clk 0:02:52.3]} 8. O-O {[%clk 0:02:24.3]}
8... Nbd7 {[%clk 0:02:50.4]} 9. Qc2 {[%clk 0:02:22.1]} 9... Ne4 {[%clk
0:02:50.1]} 10. Bxe7 {[%clk 0:02:18.8]} 10... Qxe7 {[%clk 0:02:46.5]} 11. e3
{[%clk 0:02:17.7]} 11... Rf6 {[%clk 0:02:43.1]} 12. Rfd1 {[%clk 0:02:15.2]}
12... Rh6 {[%clk 0:02:42.9]} 13. Rac1 {[%clk 0:02:08.4]} 13... g5 {[%clk
0:02:41.7]} 14. a3 {[%clk 0:01:59]} 14... Nf8 {[%clk 0:02:38.4]} 15. Ne5 {[%clk
0:01:57.2]} 15... Ng6 {[%clk 0:02:37.8]} 16. cxd5 {[%clk 0:01:55.2]} 16... exd5
{[%clk 0:02:37.6]} 17. Nxg6 {[%clk 0:01:43.5]} 17... hxg6 {[%clk 0:02:35.4]} 18.
Qb3 {[%clk 0:01:36.2]} 18... Be6 {[%clk 0:02:30]} 19. Qb4 {[%clk 0:01:00]} 19...
Qh7 {[%clk 0:02:28.8]} 20. h3 {[%clk 0:00:56.6]} 20... f4 {[%clk 0:02:28.2]} 21.
g4 {[%clk 0:00:54.5]} 21... f3 {[%clk 0:02:26.7]} 22. Bxf3 {[%clk 0:00:50]}
22... Rxh3 {[%clk 0:02:26]} 23. Bg2 {[%clk 0:00:49.9]} 23... Nxc3 {[%clk
0:02:23.6]} 24. bxc3 {[%clk 0:00:47.4]} 24... Rh2 {[%clk 0:02:18.3]} 25. Qd6
{[%clk 0:00:42.7]} 25... Bxg4 {[%clk 0:02:17.4]} 26. Qxh2 {[%clk 0:00:40.4]}
26... Qxh2+ {[%clk 0:02:12.7]} 27. Kxh2 {[%clk 0:00:40.3]} 27... Bxd1 {[%clk
0:02:12.8]} 28. Rxd1 {[%clk 0:00:40.2]} 28... Kg7 {[%clk 0:02:13.2]} 29. Kg3
{[%clk 0:00:38.8]} 29... Rh8 {[%clk 0:02:11.9]} 30. Rb1 {[%clk 0:00:37.5]} 30...
b6 {[%clk 0:02:11.3]} 31. a4 {[%clk 0:00:34.7]} 31... Rb8 {[%clk 0:02:09.5]} 32.
Kg4 {[%clk 0:00:28.4]} 32... Kf6 {[%clk 0:02:08.3]} 33. f4 {[%clk 0:00:27]}
33... gxf4 {[%clk 0:02:07.7]} 34. exf4 {[%clk 0:00:26.8]} 34... Re8 {[%clk
0:02:07.8]} 35. Kf3 {[%clk 0:00:23.9]} 35... Rf8 {[%clk 0:02:03.2]} 36. Rh1
{[%clk 0:00:22.7]} 36... Kg7 {[%clk 0:02:01.8]} 37. Re1 {[%clk 0:00:20]} 37...
g5 {[%clk 0:02:01.6]} 38. Re7+ {[%clk 0:00:16.2]} 38... Kg8 {[%clk 0:02:01.5]}
39. Rxa7 {[%clk 0:00:16.1]} 39... Rxf4+ {[%clk 0:02:01.3]} 40. Kg3 {[%clk
0:00:16.1]} 40... Rf6 {[%clk 0:01:59.5]} 41. Ra6 {[%clk 0:00:14.6]} 41... Re6
{[%clk 0:01:55.8]} 42. Rxb6 {[%clk 0:00:14.2]} 42... Re3+ {[%clk 0:01:55.6]} 43.
Kg4 {[%clk 0:00:13.1]} 43... Rxc3 {[%clk 0:01:55.8]} 44. a5 {[%clk 0:00:12.9]}
44... Rc4 {[%clk 0:01:53.1]} 45. a6 {[%clk 0:00:10.9]} 45... Rxd4+ {[%clk
0:01:53.4]} 46. Kxg5 {[%clk 0:00:11]} 46... Ra4 {[%clk 0:01:52.7]} 47. Rxc6
{[%clk 0:00:10.9]} 47... d4 {[%clk 0:01:52.5]} 48. Bd5+ {[%clk 0:00:10.2]} 48...
Kf8 {[%clk 0:01:52.1]} 49. Rf6+ {[%clk 0:00:09.1]} 49... Ke7 {[%clk 0:01:51.8]}
50. Bb7 {[%clk 0:00:07.7]} 50... d3 {[%clk 0:01:47.9]} 51. Rf3 {[%clk
0:00:06.3]} 51... d2 {[%clk 0:01:45.2]} 52. Rd3 {[%clk 0:00:05.8]} 52... Ra5+
{[%clk 0:01:44.1]} 53. Kg4 {[%clk 0:00:05.6]} 53... Ra4+ {[%clk 0:01:44.3]} 54.
Kg3 {[%clk 0:00:05.8]} 54... Ra3 {[%clk 0:01:44.2]} 55. Rxa3 {[%clk 0:00:03.7]}
55... d1=Q {[%clk 0:01:43.8]} 56. a7 {[%clk 0:00:03.8]} 56... Qd6+ {[%clk
0:01:42.3]} 57. Kg2 {[%clk 0:00:04.1]} 57... Qg6+ {[%clk 0:01:40.8]} 58. Kf2
{[%clk 0:00:03.8]} 58... Qb6+ {[%clk 0:01:39]} 59. Ke1 {[%clk 0:00:03.7]} 59...
Qb4+ {[%clk 0:01:37.6]} 60. Kf1 {[%clk 0:00:04.5]} 60... Qb5+ {[%clk 0:01:36.9]}
61. Kg1 {[%clk 0:00:04.5]} 61... Qb6+ {[%clk 0:01:37.1]} 62. Kh1 {[%clk
0:00:04.4]} 62... Qxb7+ {[%clk 0:01:37.3]} 63. Kg1 {[%clk 0:00:04.4]} 63... Qb6+
{[%clk 0:01:37.1]} 64. Kh2 {[%clk 0:00:04.2]} 64... Qd6+ {[%clk 0:01:36.6]} 65.
Kh3 {[%clk 0:00:05.1]} 65... Qxa3+ {[%clk 0:01:36.6]} 0-1

[Event "*** Titled Tuesday Blitz"]
[Site "Chess.com"]
[Date "2021.02.02"]
[Round "6"]
[White "FMalexhdez"]
[Black "dianamirza"]
[Result "1-0"]
[WhiteElo "2196"]
[BlackElo "1913"]
[TimeControl "180+1"]
[EndTime "11:08:52 PST"]
[Termination "FMalexhdez won on time"]

1. e4 {[%clk 0:03:00.9]} 1... d5 {[%clk 0:02:52.2]} 2. exd5 {[%clk 0:02:59.3]}
2... Qxd5 {[%clk 0:02:53.1]} 3. Nc3 {[%clk 0:02:56.8]} 3... Qd8 {[%clk
0:02:50.5]} 4. Nf3 {[%clk 0:02:55.8]} 4... g6 {[%clk 0:02:44]} 5. g3 {[%clk
0:02:54.4]} 5... Bg7 {[%clk 0:02:43.8]} 6. Bg2 {[%clk 0:02:55]} 6... Nf6 {[%clk
0:02:40.5]} 7. O-O {[%clk 0:02:55.4]} 7... O-O {[%clk 0:02:40.2]} 8. d4 {[%clk
0:02:52.2]} 8... c6 {[%clk 0:02:29.7]} 9. h3 {[%clk 0:02:51.1]} 9... Nbd7 {[%clk
0:02:21.4]} 10. Re1 {[%clk 0:02:49.4]} 10... Nb6 {[%clk 0:02:17.6]} 11. Ne5
{[%clk 0:02:47.8]} 11... Nfd5 {[%clk 0:02:00.7]} 12. Nxd5 {[%clk 0:02:45.4]}
12... Nxd5 {[%clk 0:01:57.1]} 13. c4 {[%clk 0:02:45.8]} 13... Nf6 {[%clk
0:01:54.3]} 14. Be3 {[%clk 0:02:29.3]} 14... Be6 {[%clk 0:01:45.6]} 15. Rc1
{[%clk 0:02:26.8]} 15... Nd7 {[%clk 0:01:35.5]} 16. f4 {[%clk 0:02:20.6]} 16...
Nxe5 {[%clk 0:01:33.3]} 17. dxe5 {[%clk 0:02:19.3]} 17... Qc8 {[%clk 0:01:32.1]}
18. Kh2 {[%clk 0:02:18.1]} 18... Qc7 {[%clk 0:01:22.2]} 19. Qe2 {[%clk
0:02:10.6]} 19... b6 {[%clk 0:01:18.9]} 20. Red1 {[%clk 0:02:08.4]} 20... Rad8
{[%clk 0:01:17.7]} 21. b4 {[%clk 0:02:00.6]} 21... Rxd1 {[%clk 0:01:15.6]} 22.
Rxd1 {[%clk 0:01:59.3]} 22... Rd8 {[%clk 0:01:14]} 23. c5 {[%clk 0:01:52.1]}
23... Rxd1 {[%clk 0:01:09.2]} 24. Qxd1 {[%clk 0:01:50.2]} 24... Bxa2 {[%clk
0:00:59.2]} 25. Qa4 {[%clk 0:01:40.2]} 25... Bd5 {[%clk 0:00:54.5]} 26. Bxd5
{[%clk 0:01:36.6]} 26... cxd5 {[%clk 0:00:55.4]} 27. Qe8+ {[%clk 0:01:33.4]}
27... Bf8 {[%clk 0:00:53.9]} 28. c6 {[%clk 0:01:33]} 28... e6 {[%clk 0:00:40.7]}
29. b5 {[%clk 0:01:07]} 29... Kg7 {[%clk 0:00:36.6]} 30. Qa8 {[%clk 0:00:51.5]}
30... Be7 {[%clk 0:00:25.9]} 31. Bd4 {[%clk 0:00:37.5]} 31... h5 {[%clk
0:00:12.5]} 32. g4 {[%clk 0:00:35.2]} 32... hxg4 {[%clk 0:00:12.8]} 33. hxg4
{[%clk 0:00:34.7]} 33... Bd8 {[%clk 0:00:05.9]} 34. Kg2 {[%clk 0:00:22.6]} 34...
Kf8 {[%clk 0:00:05.9]} 35. Kf3 {[%clk 0:00:19]} 35... Ke7 {[%clk 0:00:06.2]} 36.
Bc3 {[%clk 0:00:17]} 36... Ke8 {[%clk 0:00:05.8]} 37. Bb4 {[%clk 0:00:13.8]}
37... g5 {[%clk 0:00:01.9]} 38. Bd6 {[%clk 0:00:11.9]} 1-0

[Event "*** Titled Tuesday Blitz"]
[Site "Chess.com"]
[Date "2021.02.02"]
[Round "6"]
[White "Shepherdboy"]
[Black "KruHor"]
[Result "1-0"]
[WhiteElo "2431"]
[BlackElo "2569"]
[TimeControl "180+1"]
[EndTime "11:08:53 PST"]
[Termination "Shepherdboy won by resignation"]

1. d4 {[%clk 0:03:00.9]} 1... Nf6 {[%clk 0:02:59]} 2. c4 {[%clk 0:02:58.3]} 2...
e6 {[%clk 0:02:58.7]} 3. Nf3 {[%clk 0:02:49.3]} 3... c5 {[%clk 0:02:55.2]} 4. d5
{[%clk 0:02:44.7]} 4... d6 {[%clk 0:02:55]} 5. Nc3 {[%clk 0:02:44.1]} 5... exd5
{[%clk 0:02:54.8]} 6. cxd5 {[%clk 0:02:44.8]} 6... g6 {[%clk 0:02:54.9]} 7. h3
{[%clk 0:02:34]} 7... Qe7 {[%clk 0:02:52.9]} 8. Bf4 {[%clk 0:02:30.4]} 8... a6
{[%clk 0:02:51.6]} 9. a4 {[%clk 0:02:26.9]} 9... Nbd7 {[%clk 0:02:46.7]} 10. e3
{[%clk 0:02:26.7]} 10... Bg7 {[%clk 0:02:45.8]} 11. Be2 {[%clk 0:02:23.1]} 11...
O-O {[%clk 0:02:45.5]} 12. O-O {[%clk 0:02:22.6]} 12... Rb8 {[%clk 0:02:44.7]}
13. Re1 {[%clk 0:02:17.9]} 13... Ne8 {[%clk 0:02:43.7]} 14. Nd2 {[%clk 0:02:14]}
14... Ne5 {[%clk 0:02:31.6]} 15. e4 {[%clk 0:02:13.8]} 15... Nc7 {[%clk
0:02:12.5]} 16. Bh2 {[%clk 0:02:10.7]} 16... b5 {[%clk 0:02:03.8]} 17. f4 {[%clk
0:02:10.4]} 17... Nd7 {[%clk 0:01:53.7]} 18. axb5 {[%clk 0:02:09.9]} 18... Nxb5
{[%clk 0:01:53.1]} 19. Rc1 {[%clk 0:02:05.9]} 19... Nd4 {[%clk 0:01:46.7]} 20.
Bd3 {[%clk 0:02:06.1]} 20... Rxb2 {[%clk 0:01:42.8]} 21. Nc4 {[%clk 0:02:03]}
21... Rb4 {[%clk 0:01:42.2]} 22. e5 {[%clk 0:01:58.5]} 22... dxe5 {[%clk
0:01:30.9]} 23. fxe5 {[%clk 0:01:59.4]} 23... Rxc4 {[%clk 0:01:16.2]} 24. Bxc4
{[%clk 0:01:58.6]} 24... Nxe5 {[%clk 0:01:15.6]} 25. Bf1 {[%clk 0:01:54.3]}
25... Bf5 {[%clk 0:00:56.4]} 26. Kh1 {[%clk 0:01:52.6]} 26... h5 {[%clk
0:00:40.2]} 27. Bxa6 {[%clk 0:01:50.7]} 27... Qd6 {[%clk 0:00:33.2]} 28. Bf1
{[%clk 0:01:49.9]} 28... Rb8 {[%clk 0:00:30.9]} 29. Ne4 {[%clk 0:01:25.7]} 29...
Bxe4 {[%clk 0:00:26.7]} 30. Rxe4 {[%clk 0:01:26.6]} 30... Re8 {[%clk 0:00:20.6]}
31. Qe1 {[%clk 0:01:19.4]} 31... f5 {[%clk 0:00:19.9]} 32. Re3 {[%clk
0:01:14.9]} 32... g5 {[%clk 0:00:19.3]} 33. Qd1 {[%clk 0:00:59.8]} 33... f4
{[%clk 0:00:18.6]} 34. Qxh5 {[%clk 0:00:59.8]} 34... Rf8 {[%clk 0:00:17.5]} 35.
Rec3 {[%clk 0:00:56.3]} 35... Qf6 {[%clk 0:00:14.9]} 36. Rxc5 {[%clk 0:00:49.3]}
36... f3 {[%clk 0:00:14.7]} 37. Rc8 {[%clk 0:00:42.6]} 37... fxg2+ {[%clk
0:00:13.5]} 38. Bxg2 {[%clk 0:00:30.1]} 38... Nd3 {[%clk 0:00:13.1]} 39. Rxf8+
{[%clk 0:00:25.5]} 39... Bxf8 {[%clk 0:00:12.1]} 40. Rf1 {[%clk 0:00:26.4]}
40... Nf2+ {[%clk 0:00:11.1]} 41. Kg1 {[%clk 0:00:23]} 41... Bc5 {[%clk
0:00:10.3]} 42. Rxf2 {[%clk 0:00:17.7]} 42... Ne2+ {[%clk 0:00:09.8]} 43. Qxe2
{[%clk 0:00:15.8]} 43... Qa1+ {[%clk 0:00:09.8]} 44. Qf1 {[%clk 0:00:15.4]} 1-0